[Event "Titled Tuesday Blitz March 07 Early 2023"]
[White "Rottenwohrer Suarez, Juan"]
[Black "Goltsev, Dmitry"]
[WhiteFideId "32068182"]
[BlackFideId "24176710"]
[WhiteElo "2174"]
[BlackElo "2336"]
[Result "0-1"]
[Round "03"]
[TimeControl "180+2"]
[Date "2023.03.07"]
[WhiteClock "0:00:01"]
[BlackClock "0:01:39"]

1. Nf3 {[%clk 0:03:00]}  d5 {[%clk 0:02:52]} 2. g3 {[%clk 0:03:01]}  c6 {[%clk 0:02:51]} 3. Bg2 {[%clk 0:03:01]}  Nf6 {[%clk 0:02:51]} 4. O-O {[%clk 0:03:02]}  g6 {[%clk 0:02:51]} 5. c4 {[%clk 0:02:58]}  Bg7 {[%clk 0:02:51]} 6. cxd5 {[%clk 0:02:58]}  cxd5 {[%clk 0:02:52]} 7. d4 {[%clk 0:02:59]}  O-O {[%clk 0:02:52]} 8. Nc3 {[%clk 0:02:59]}  Nc6 {[%clk 0:02:52]} 9. Ne5 {[%clk 0:03:00]}  Bf5 {[%clk 0:02:50]} 10. Bf4 {[%clk 0:02:59]}  e6 {[%clk 0:02:49]} 11. Rc1 {[%clk 0:02:58]}  Nd7 {[%clk 0:02:48]} 12. Nxc6 {[%clk 0:02:49]}  bxc6 {[%clk 0:02:48]} 13. Na4 {[%clk 0:02:49]}  Rc8 {[%clk 0:02:36]} 14. Nc5 {[%clk 0:02:36]}  Nxc5 {[%clk 0:02:36]} 15. Rxc5 {[%clk 0:02:35]}  Qe7 {[%clk 0:02:36]} 16. Ra5 {[%clk 0:02:14]}  Qb4 {[%clk 0:02:27]} 17. Rxa7 {[%clk 0:01:56]}  Qxb2 {[%clk 0:02:19]} 18. Be3 {[%clk 0:01:33]}  Ra8 {[%clk 0:02:18]} 19. Rxa8 {[%clk 0:00:54]}  Rxa8 {[%clk 0:02:18]} 20. Qc1 {[%clk 0:00:55]}  Qxc1 {[%clk 0:02:14]} 21. Rxc1 {[%clk 0:00:54]}  Rxa2 {[%clk 0:02:15]} 22. Rxc6 {[%clk 0:00:30]}  Ra1+ {[%clk 0:02:09]} 23. Rc1 {[%clk 0:00:30]}  Bxd4 {[%clk 0:02:05]} 24. Rxa1 {[%clk 0:00:28]}  Bxa1 {[%clk 0:02:06]} 25. h4 {[%clk 0:00:21]}  Be5 {[%clk 0:02:03]} 26. Kf1 {[%clk 0:00:18]}  Bd6 {[%clk 0:02:01]} 27. Bd4 {[%clk 0:00:17]}  e5 {[%clk 0:02:01]} 28. Bb2 {[%clk 0:00:14]}  Be6 {[%clk 0:02:00]} 29. Ke1 {[%clk 0:00:13]}  f5 {[%clk 0:02:00]} 30. Kd2 {[%clk 0:00:13]}  Kf7 {[%clk 0:01:57]} 31. e3 {[%clk 0:00:14]}  Ke7 {[%clk 0:01:54]} 32. Bf3 {[%clk 0:00:14]}  Kd7 {[%clk 0:01:54]} 33. Bg2 {[%clk 0:00:15]}  Kc6 {[%clk 0:01:54]} 34. Bc3 {[%clk 0:00:15]}  Kb5 {[%clk 0:01:51]} 35. Kd3 {[%clk 0:00:12]}  e4+ {[%clk 0:01:38]} 36. Ke2 {[%clk 0:00:07]}  Kc4 {[%clk 0:01:36]} 37. Bd4 {[%clk 0:00:07]}  Bc5 {[%clk 0:01:35]} 38. Bxc5 {[%clk 0:00:07]}  Kxc5 {[%clk 0:01:35]} 39. Kd2 {[%clk 0:00:07]}  d4 {[%clk 0:01:34]} 40. exd4+ {[%clk 0:00:08]}  Kxd4 {[%clk 0:01:35]} 41. Bf1 {[%clk 0:00:08]}  h6 {[%clk 0:01:33]} 42. Bb5 {[%clk 0:00:08]}  g5 {[%clk 0:01:32]} 43. hxg5 {[%clk 0:00:09]}  hxg5 {[%clk 0:01:33]} 44. Bc6 {[%clk 0:00:06]}  Bd5 {[%clk 0:01:33]} 45. Bd7 {[%clk 0:00:04]}  Ke5 {[%clk 0:01:33]} 46. Ke3 {[%clk 0:00:03]}  Be6 {[%clk 0:01:32]} 47. Bc6 {[%clk 0:00:03]}  Bc8 {[%clk 0:01:32]} 48. Bb5 {[%clk 0:00:03]}  f4+ {[%clk 0:01:31]} 49. gxf4+ {[%clk 0:00:03]}  gxf4+ {[%clk 0:01:32]} 50. Kd2 {[%clk 0:00:04]}  Kd4 {[%clk 0:01:33]} 51. Bc6 {[%clk 0:00:03]}  Be6 {[%clk 0:01:33]} 52. Ke1 {[%clk 0:00:02]}  Bd5 {[%clk 0:01:33]} 53. Bb5 {[%clk 0:00:03]}  Ke5 {[%clk 0:01:33]} 54. Ba6 {[%clk 0:00:03]}  Kd4 {[%clk 0:01:34]} 55. Bb5 {[%clk 0:00:03]}  Kc5 {[%clk 0:01:34]} 56. Ba6 {[%clk 0:00:04]}  Bc4 {[%clk 0:01:34]} 57. Bb7 {[%clk 0:00:04]}  Kd4 {[%clk 0:01:35]} 58. Ba8 {[%clk 0:00:04]}  Ke5 {[%clk 0:01:34]} 59. Bb7 {[%clk 0:00:04]}  Kd4 {[%clk 0:01:35]} 60. Ba8 {[%clk 0:00:05]}  Bd5 {[%clk 0:01:35]} 61. Bxd5 {[%clk 0:00:02]}  Kxd5 {[%clk 0:01:36]} 62. Kd2 {[%clk 0:00:02]}  Kd4 {[%clk 0:01:36]} 63. Ke2 {[%clk 0:00:02]}  Kc3 {[%clk 0:01:37]} 64. Ke1 {[%clk 0:00:01]}  Kd3 {[%clk 0:01:36]} 65. Kd1 {[%clk 0:00:02]}  f3 {[%clk 0:01:36]} 66. Ke1 {[%clk 0:00:02]}  Kc2 {[%clk 0:01:37]} 67. Kf1 {[%clk 0:00:01]}  Kd2 {[%clk 0:01:38]} 68. Kg1 {[%clk 0:00:01]}  Ke2 {[%clk 0:01:39]} 0-1


[Site "https://www.chess.com"]

[Event "Titled Tuesday Blitz March 07 Early 2023"]
[White "Vishnu, Prasanna. V"]
[Black "Mohammed, Dilshad"]
[WhiteFideId "5030692"]
[BlackFideId "5050421"]
[WhiteElo "2468"]
[BlackElo "2112"]
[Result "0-1"]
[Round "03"]
[TimeControl "180+2"]
[Date "2023.03.07"]
[WhiteClock "0:00:57"]
[BlackClock "0:00:09"]

1. c4 {[%clk 0:03:00]}  c5 {[%clk 0:02:59]} 2. Nf3 {[%clk 0:03:01]}  Nf6 {[%clk 0:02:59]} 3. Nc3 {[%clk 0:03:00]}  Nc6 {[%clk 0:02:58]} 4. e3 {[%clk 0:03:00]}  e5 {[%clk 0:02:54]} 5. d4 {[%clk 0:02:55]}  cxd4 {[%clk 0:02:54]} 6. exd4 {[%clk 0:02:55]}  e4 {[%clk 0:02:52]} 7. Ne5 {[%clk 0:02:55]}  d6 {[%clk 0:02:48]} 8. Nxc6 {[%clk 0:02:55]}  bxc6 {[%clk 0:02:49]} 9. Bg5 {[%clk 0:02:55]}  Rb8 {[%clk 0:02:30]} 10. Qc2 {[%clk 0:02:19]}  d5 {[%clk 0:02:18]} 11. cxd5 {[%clk 0:02:17]}  cxd5 {[%clk 0:02:08]} 12. Bb5+ {[%clk 0:02:17]}  Bd7 {[%clk 0:02:08]} 13. Bxd7+ {[%clk 0:02:17]}  Qxd7 {[%clk 0:02:07]} 14. Bxf6 {[%clk 0:02:18]}  gxf6 {[%clk 0:02:08]} 15. O-O {[%clk 0:02:17]}  Rg8 {[%clk 0:02:05]} 16. f3 {[%clk 0:02:16]}  f5 {[%clk 0:02:00]} 17. Rae1 {[%clk 0:02:15]}  Bg7 {[%clk 0:01:53]} 18. Qf2 {[%clk 0:02:14]}  Rb4 {[%clk 0:01:48]} 19. Kh1 {[%clk 0:02:13]}  Bxd4 {[%clk 0:01:44]} 20. Qd2 {[%clk 0:02:14]}  Bxc3 {[%clk 0:01:30]} 21. Qxc3 {[%clk 0:02:13]}  a5 {[%clk 0:01:08]} 22. a3 {[%clk 0:02:09]}  Rb5 {[%clk 0:01:02]} 23. fxe4 {[%clk 0:01:59]}  fxe4 {[%clk 0:00:56]} 24. Qe5+ {[%clk 0:01:56]}  Qe6 {[%clk 0:00:56]} 25. Rxe4 {[%clk 0:01:38]}  Qxe5 {[%clk 0:00:41]} 26. Rxe5+ {[%clk 0:01:39]}  Kf8 {[%clk 0:00:41]} 27. Ref5 {[%clk 0:01:40]}  Rxb2 {[%clk 0:00:30]} 28. Rxf7+ {[%clk 0:01:39]}  Ke8 {[%clk 0:00:30]} 29. Rxh7 {[%clk 0:01:32]}  Rgxg2 {[%clk 0:00:20]} 30. Re1+ {[%clk 0:01:28]}  Kf8 {[%clk 0:00:19]} 31. Rc1 {[%clk 0:01:24]}  Rgc2 {[%clk 0:00:19]} 32. Rg1 {[%clk 0:01:21]}  Ra2 {[%clk 0:00:16]} 33. Rh5 {[%clk 0:01:15]}  Rd2 {[%clk 0:00:16]} 34. Rf1+ {[%clk 0:01:12]}  Kg8 {[%clk 0:00:15]} 35. Rh4 {[%clk 0:01:10]}  Rxa3 {[%clk 0:00:14]} 36. Rg4+ {[%clk 0:01:10]}  Kh8 {[%clk 0:00:13]} 37. Kg1 {[%clk 0:01:10]}  Raa2 {[%clk 0:00:11]} 38. Rg3 {[%clk 0:01:08]}  Rac2 {[%clk 0:00:09]} 39. Rf8+ {[%clk 0:01:08]}  Kh7 {[%clk 0:00:08]} 40. Rf1 {[%clk 0:01:06]}  Rc4 {[%clk 0:00:08]} 41. h3 {[%clk 0:01:04]}  Rcd4 {[%clk 0:00:07]} 42. Rf5 {[%clk 0:01:00]}  Rd1+ {[%clk 0:00:07]} 43. Kf2 {[%clk 0:01:00]}  R1d2+ {[%clk 0:00:07]} 44. Ke1 {[%clk 0:01:00]}  Rd1+ {[%clk 0:00:07]} 45. Ke2 {[%clk 0:01:00]}  R1d2+ {[%clk 0:00:08]} 46. Ke1 {[%clk 0:01:00]}  Rd1+ {[%clk 0:00:08]} 47. Kf2 {[%clk 0:01:00]}  R4d2+ {[%clk 0:00:08]} 48. Ke3 {[%clk 0:01:00]}  Rd3+ {[%clk 0:00:09]} 49. Kf4 {[%clk 0:01:01]}  Rf1+ {[%clk 0:00:08]} 50. Kg4 {[%clk 0:00:59]}  Rxg3+ {[%clk 0:00:08]} 51. Kxg3 {[%clk 0:00:57]}  Rxf5 {[%clk 0:00:09]} 0-1


[Site "https://www.chess.com"]

[Event "Titled Tuesday Blitz March 07 Early 2023"]
[White "De Silva, L M S T"]
[Black "Hernandez Sanchez, Elvis De La Caridad"]
[WhiteFideId "9953698"]
[BlackFideId "6400353"]
[WhiteElo "2403"]
[BlackElo "2465"]
[Result "1-0"]
[Round "03"]
[TimeControl "180+2"]
[Date "2023.03.07"]
[WhiteClock "0:01:50"]
[BlackClock "0:00:06"]

1. Nf3 {[%clk 0:03:00]}  d5 {[%clk 0:02:10]} 2. e3 {[%clk 0:02:59]}  g6 {[%clk 0:02:09]} 3. c4 {[%clk 0:02:59]}  c6 {[%clk 0:02:07]} 4. Nc3 {[%clk 0:02:56]}  Bg7 {[%clk 0:02:06]} 5. b3 {[%clk 0:02:56]}  Nf6 {[%clk 0:02:04]} 6. Bb2 {[%clk 0:02:56]}  O-O {[%clk 0:02:04]} 7. Be2 {[%clk 0:02:51]}  Na6 {[%clk 0:02:01]} 8. O-O {[%clk 0:02:52]}  dxc4 {[%clk 0:01:55]} 9. bxc4 {[%clk 0:02:51]}  Nc5 {[%clk 0:01:55]} 10. d4 {[%clk 0:02:51]}  Nce4 {[%clk 0:01:55]} 11. Nxe4 {[%clk 0:02:46]}  Nxe4 {[%clk 0:01:56]} 12. Nd2 {[%clk 0:02:47]}  Nxd2 {[%clk 0:01:54]} 13. Qxd2 {[%clk 0:02:47]}  Be6 {[%clk 0:01:31]} 14. Rfd1 {[%clk 0:02:45]}  Qd7 {[%clk 0:01:15]} 15. e4 {[%clk 0:02:39]}  Qc8 {[%clk 0:00:51]} 16. d5 {[%clk 0:02:37]}  Bxb2 {[%clk 0:00:48]} 17. Qxb2 {[%clk 0:02:38]}  Bg4 {[%clk 0:00:43]} 18. f3 {[%clk 0:02:36]}  Bd7 {[%clk 0:00:43]} 19. Rac1 {[%clk 0:02:28]}  Rb8 {[%clk 0:00:42]} 20. d6 {[%clk 0:02:20]}  exd6 {[%clk 0:00:39]} 21. Rxd6 {[%clk 0:02:20]}  Be6 {[%clk 0:00:36]} 22. Rcd1 {[%clk 0:02:20]}  b5 {[%clk 0:00:30]} 23. c5 {[%clk 0:02:20]}  Qc7 {[%clk 0:00:25]} 24. Qf6 {[%clk 0:02:19]}  Qa5 {[%clk 0:00:19]} 25. h4 {[%clk 0:02:18]}  h5 {[%clk 0:00:14]} 26. Rxe6 {[%clk 0:02:16]}  Qxa2 {[%clk 0:00:11]} 27. Re7 {[%clk 0:01:53]}  Qxe2 {[%clk 0:00:11]} 28. Rdd7 {[%clk 0:01:54]}  Qc4 {[%clk 0:00:09]} 29. e5 {[%clk 0:01:51]}  Qxc5+ {[%clk 0:00:08]} 30. Kh2 {[%clk 0:01:51]}  Qc3 {[%clk 0:00:06]} 31. Rxf7 {[%clk 0:01:50]} 1-0


[Site "https://www.chess.com"]

[Event "Titled Tuesday Blitz March 07 Early 2023"]
[White "Bozorov, Makhsum"]
[Black "Preotu, Razvan"]
[WhiteFideId "14201330"]
[BlackFideId "2613280"]
[WhiteElo "2465"]
[BlackElo "2407"]
[Result "0-1"]
[Round "03"]
[TimeControl "180+2"]
[Date "2023.03.07"]
[WhiteClock "0:00:01"]
[BlackClock "0:00:05"]

1. e4 {[%clk 0:03:00]}  c5 {[%clk 0:02:59]} 2. Nf3 {[%clk 0:03:00]}  d6 {[%clk 0:02:59]} 3. Bb5+ {[%clk 0:03:00]}  Nd7 {[%clk 0:02:59]} 4. Qe2 {[%clk 0:02:59]}  a6 {[%clk 0:02:59]} 5. Bxd7+ {[%clk 0:02:53]}  Bxd7 {[%clk 0:03:00]} 6. O-O {[%clk 0:02:52]}  Nf6 {[%clk 0:03:00]} 7. d3 {[%clk 0:02:52]}  g6 {[%clk 0:02:51]} 8. b3 {[%clk 0:02:52]}  Bg7 {[%clk 0:02:51]} 9. Bb2 {[%clk 0:02:53]}  O-O {[%clk 0:02:52]} 10. Nbd2 {[%clk 0:02:53]}  Bc6 {[%clk 0:02:48]} 11. Rab1 {[%clk 0:02:51]}  e5 {[%clk 0:02:43]} 12. Nc4 {[%clk 0:02:31]}  Nh5 {[%clk 0:02:42]} 13. Nfd2 {[%clk 0:02:19]}  Nf4 {[%clk 0:02:41]} 14. Qd1 {[%clk 0:02:19]}  f5 {[%clk 0:02:42]} 15. f3 {[%clk 0:02:02]}  b5 {[%clk 0:01:48]} 16. Ne3 {[%clk 0:02:01]}  Qg5 {[%clk 0:01:49]} 17. Qe1 {[%clk 0:01:52]}  Bh6 {[%clk 0:01:46]} 18. Kh1 {[%clk 0:01:30]}  Nxd3 {[%clk 0:01:46]} 19. cxd3 {[%clk 0:01:29]}  Qxe3 {[%clk 0:01:46]} 20. Qxe3 {[%clk 0:01:27]}  Bxe3 {[%clk 0:01:47]} 21. Rfd1 {[%clk 0:01:19]}  Kf7 {[%clk 0:01:31]} 22. Nf1 {[%clk 0:01:20]}  Bh6 {[%clk 0:01:31]} 23. Bc1 {[%clk 0:01:18]}  f4 {[%clk 0:01:27]} 24. Bd2 {[%clk 0:01:05]}  b4 {[%clk 0:01:27]} 25. a4 {[%clk 0:01:00]}  bxa3 {[%clk 0:01:25]} 26. Ra1 {[%clk 0:01:00]}  Bb5 {[%clk 0:01:10]} 27. Bc3 {[%clk 0:00:56]}  Rfb8 {[%clk 0:01:07]} 28. Rxa3 {[%clk 0:00:55]}  Ke6 {[%clk 0:01:08]} 29. Kg1 {[%clk 0:00:53]}  Bg5 {[%clk 0:01:05]} 30. Kf2 {[%clk 0:00:53]}  Bd8 {[%clk 0:01:06]} 31. Ke2 {[%clk 0:00:51]}  g5 {[%clk 0:00:55]} 32. h3 {[%clk 0:00:47]}  h5 {[%clk 0:00:56]} 33. Nd2 {[%clk 0:00:47]}  Bc7 {[%clk 0:00:54]} 34. Nc4 {[%clk 0:00:41]}  Rh8 {[%clk 0:00:53]} 35. Raa1 {[%clk 0:00:36]}  Rag8 {[%clk 0:00:51]} 36. Rh1 {[%clk 0:00:27]}  g4 {[%clk 0:00:39]} 37. hxg4 {[%clk 0:00:25]}  hxg4 {[%clk 0:00:40]} 38. Rxh8 {[%clk 0:00:20]}  gxf3+ {[%clk 0:00:40]} 39. Kxf3 {[%clk 0:00:17]}  Rxh8 {[%clk 0:00:41]} 40. Rg1 {[%clk 0:00:12]}  Rh2 {[%clk 0:00:26]} 41. Ra1 {[%clk 0:00:07]}  Be8 {[%clk 0:00:03]} 42. Rxa6 {[%clk 0:00:02]}  Bh5+ {[%clk 0:00:04]} 43. Kf2 {[%clk 0:00:01]}  f3 {[%clk 0:00:05]} 0-1


[Site "https://www.chess.com"]

[Event "Titled Tuesday Blitz March 07 Early 2023"]
[White "Oro, Faustino"]
[Black "Dudzinski, Pawel"]
[WhiteFideId "20000197"]
[BlackFideId "1117890"]
[WhiteElo "1984"]
[BlackElo "2099"]
[Result "1-0"]
[Round "03"]
[TimeControl "180+2"]
[Date "2023.03.07"]
[WhiteClock "0:00:17"]
[BlackClock "0:00:13"]

1. e4 {[%clk 0:03:00]}  c6 {[%clk 0:02:55]} 2. d4 {[%clk 0:03:01]}  d5 {[%clk 0:02:55]} 3. e5 {[%clk 0:03:01]}  c5 {[%clk 0:02:56]} 4. dxc5 {[%clk 0:02:59]}  e6 {[%clk 0:02:55]} 5. Nf3 {[%clk 0:03:00]}  Bxc5 {[%clk 0:02:51]} 6. Bd3 {[%clk 0:03:00]}  Ne7 {[%clk 0:02:48]} 7. O-O {[%clk 0:02:59]}  Ng6 {[%clk 0:02:49]} 8. Nbd2 {[%clk 0:02:52]}  Nd7 {[%clk 0:02:48]} 9. Nb3 {[%clk 0:02:49]}  Be7 {[%clk 0:02:47]} 10. Re1 {[%clk 0:02:48]}  Qc7 {[%clk 0:02:46]} 11. Bxg6 {[%clk 0:02:45]}  hxg6 {[%clk 0:02:45]} 12. c3 {[%clk 0:02:43]}  a5 {[%clk 0:02:43]} 13. Bf4 {[%clk 0:02:43]}  Nc5 {[%clk 0:02:35]} 14. Nfd4 {[%clk 0:02:34]}  Bd7 {[%clk 0:02:30]} 15. Nxc5 {[%clk 0:02:20]}  Bxc5 {[%clk 0:02:30]} 16. Qd2 {[%clk 0:02:20]}  Qb6 {[%clk 0:02:22]} 17. Nb3 {[%clk 0:02:12]}  a4 {[%clk 0:02:10]} 18. Nxc5 {[%clk 0:02:12]}  Qxc5 {[%clk 0:02:11]} 19. Be3 {[%clk 0:02:12]}  Qc4 {[%clk 0:02:01]} 20. Bd4 {[%clk 0:02:07]}  b5 {[%clk 0:01:45]} 21. Qe3 {[%clk 0:01:53]}  b4 {[%clk 0:01:36]} 22. cxb4 {[%clk 0:01:46]}  Qxb4 {[%clk 0:01:37]} 23. Rac1 {[%clk 0:01:33]}  Rc8 {[%clk 0:01:32]} 24. Rxc8+ {[%clk 0:01:26]}  Bxc8 {[%clk 0:01:33]} 25. Rc1 {[%clk 0:01:25]}  Ba6 {[%clk 0:01:33]} 26. Bc5 {[%clk 0:01:09]}  Qb7 {[%clk 0:01:04]} 27. Ba3 {[%clk 0:01:05]}  Bc4 {[%clk 0:00:47]} 28. Qc5 {[%clk 0:00:53]}  Kd7 {[%clk 0:00:16]} 29. Qd6+ {[%clk 0:00:36]}  Kc8 {[%clk 0:00:14]} 30. b3 {[%clk 0:00:35]}  axb3 {[%clk 0:00:14]} 31. axb3 {[%clk 0:00:34]}  Qxb3 {[%clk 0:00:14]} 32. Qc6+ {[%clk 0:00:34]}  Kb8 {[%clk 0:00:12]} 33. Bd6+ {[%clk 0:00:33]}  Ka7 {[%clk 0:00:12]} 34. Ra1+ {[%clk 0:00:33]}  Qa2 {[%clk 0:00:13]} 35. Rxa2+ {[%clk 0:00:33]}  Bxa2 {[%clk 0:00:14]} 36. Qc7+ {[%clk 0:00:30]}  Ka6 {[%clk 0:00:14]} 37. Bc5 {[%clk 0:00:29]}  Kb5 {[%clk 0:00:14]} 38. Qb6+ {[%clk 0:00:25]}  Kc4 {[%clk 0:00:14]} 39. Qb4+ {[%clk 0:00:25]}  Kd3 {[%clk 0:00:15]} 40. h3 {[%clk 0:00:18]}  Bc4 {[%clk 0:00:11]} 41. Qa3+ {[%clk 0:00:16]}  Ke4 {[%clk 0:00:12]} 42. Qe3+ {[%clk 0:00:16]}  Kf5 {[%clk 0:00:13]} 43. g4# {[%clk 0:00:17]} 1-0


[Site "https://www.chess.com"]

[Event "Titled Tuesday Blitz March 07 Early 2023"]
[White "Goudriaan, Etienne"]
[Black "Abdilkhair, Abilmansur"]
[WhiteFideId "1021150"]
[BlackFideId "13716417"]
[WhiteElo "2318"]
[BlackElo "2216"]
[Result "0-1"]
[Round "03"]
[TimeControl "180+2"]
[Date "2023.03.07"]
[WhiteClock "0:01:02"]
[BlackClock "0:00:06"]

1. d4 {[%clk 0:03:00]}  Nf6 {[%clk 0:02:41]} 2. c4 {[%clk 0:02:59]}  e6 {[%clk 0:02:41]} 3. Nc3 {[%clk 0:03:00]}  Bb4 {[%clk 0:02:41]} 4. e3 {[%clk 0:03:00]}  d5 {[%clk 0:02:39]} 5. a3 {[%clk 0:02:58]}  Be7 {[%clk 0:02:34]} 6. Bd3 {[%clk 0:02:51]}  O-O {[%clk 0:02:33]} 7. Nge2 {[%clk 0:02:51]}  dxc4 {[%clk 0:02:29]} 8. Bxc4 {[%clk 0:02:51]}  a6 {[%clk 0:02:29]} 9. O-O {[%clk 0:02:47]}  b5 {[%clk 0:02:30]} 10. Ba2 {[%clk 0:02:48]}  Bb7 {[%clk 0:02:30]} 11. Qc2 {[%clk 0:02:42]}  c5 {[%clk 0:02:26]} 12. dxc5 {[%clk 0:02:43]}  Bxc5 {[%clk 0:02:27]} 13. Nxb5 {[%clk 0:02:38]}  axb5 {[%clk 0:01:45]} 14. Qxc5 {[%clk 0:02:37]}  Ne4 {[%clk 0:01:38]} 15. Qd4 {[%clk 0:02:31]}  Qg5 {[%clk 0:01:36]} 16. Ng3 {[%clk 0:02:29]}  Nxg3 {[%clk 0:01:16]} 17. hxg3 {[%clk 0:02:29]}  Nc6 {[%clk 0:01:11]} 18. Qf4 {[%clk 0:02:27]}  Qh5 {[%clk 0:01:09]} 19. b4 {[%clk 0:02:24]}  Ne5 {[%clk 0:00:52]} 20. f3 {[%clk 0:02:02]}  Nd3 {[%clk 0:00:41]} 21. Qh4 {[%clk 0:01:48]}  Qxh4 {[%clk 0:00:23]} 22. gxh4 {[%clk 0:01:49]}  Nxc1 {[%clk 0:00:23]} 23. Rfxc1 {[%clk 0:01:43]}  Rxa3 {[%clk 0:00:24]} 24. Bb1 {[%clk 0:01:39]}  Rxa1 {[%clk 0:00:22]} 25. Bxh7+ {[%clk 0:01:39]}  Kxh7 {[%clk 0:00:23]} 26. Rxa1 {[%clk 0:01:40]}  Ra8 {[%clk 0:00:21]} 27. Rc1 {[%clk 0:01:38]}  Rc8 {[%clk 0:00:17]} 28. Ra1 {[%clk 0:01:36]}  Bd5 {[%clk 0:00:15]} 29. Ra7 {[%clk 0:01:34]}  Kg6 {[%clk 0:00:14]} 30. e4 {[%clk 0:01:34]}  Rc1+ {[%clk 0:00:13]} 31. Kf2 {[%clk 0:01:33]}  Bc4 {[%clk 0:00:14]} 32. g4 {[%clk 0:01:33]}  Rb1 {[%clk 0:00:14]} 33. e5 {[%clk 0:01:30]}  f6 {[%clk 0:00:12]} 34. h5+ {[%clk 0:01:30]}  Kh6 {[%clk 0:00:12]} 35. exf6 {[%clk 0:01:29]}  gxf6 {[%clk 0:00:13]} 36. Rf7 {[%clk 0:01:29]}  f5 {[%clk 0:00:12]} 37. Rf6+ {[%clk 0:01:26]}  Kg5 {[%clk 0:00:12]} 38. Rg6+ {[%clk 0:01:26]}  Kf4 {[%clk 0:00:12]} 39. h6 {[%clk 0:01:21]}  Rh1 {[%clk 0:00:09]} 40. Kg2 {[%clk 0:01:18]}  Rh4 {[%clk 0:00:09]} 41. g5 {[%clk 0:01:19]}  Rh5 {[%clk 0:00:08]} 42. Rg7 {[%clk 0:01:14]}  Be2 {[%clk 0:00:06]} 43. h7 {[%clk 0:01:14]}  Bxf3+ {[%clk 0:00:06]} 44. Kf2 {[%clk 0:01:11]}  Rh2+ {[%clk 0:00:06]} 45. Kg1 {[%clk 0:01:08]}  Kg3 {[%clk 0:00:07]} 46. h8=Q {[%clk 0:01:02]}  Rxh8 {[%clk 0:00:06]} 0-1


[Site "https://www.chess.com"]

[Event "Titled Tuesday Blitz March 07 Early 2023"]
[White "Omariev, Maksim"]
[Black "Lewtak, Damian"]
[WhiteFideId "4193423"]
[BlackFideId "1141724"]
[WhiteElo "2462"]
[BlackElo "2302"]
[Result "1-0"]
[Round "03"]
[TimeControl "180+2"]
[Date "2023.03.07"]
[WhiteClock "0:00:03"]
[BlackClock "0:00:02"]

1. g4 {[%clk 0:02:51]}  d5 {[%clk 0:02:50]} 2. Bg2 {[%clk 0:02:52]}  c6 {[%clk 0:02:51]} 3. h3 {[%clk 0:02:51]}  g6 {[%clk 0:02:49]} 4. d4 {[%clk 0:02:52]}  Bg7 {[%clk 0:02:49]} 5. Nf3 {[%clk 0:02:48]}  Nf6 {[%clk 0:02:48]} 6. c3 {[%clk 0:02:46]}  O-O {[%clk 0:02:45]} 7. Bf4 {[%clk 0:02:47]}  Nbd7 {[%clk 0:02:44]} 8. Nbd2 {[%clk 0:02:47]}  Re8 {[%clk 0:02:38]} 9. Ne5 {[%clk 0:02:46]}  Nxe5 {[%clk 0:02:28]} 10. Bxe5 {[%clk 0:02:47]}  Bh6 {[%clk 0:02:19]} 11. Bg3 {[%clk 0:01:29]}  Bg7 {[%clk 0:02:08]} 12. e3 {[%clk 0:01:05]}  Nd7 {[%clk 0:02:06]} 13. f4 {[%clk 0:01:05]}  e6 {[%clk 0:01:59]} 14. h4 {[%clk 0:01:01]}  f6 {[%clk 0:01:51]} 15. g5 {[%clk 0:00:55]}  e5 {[%clk 0:01:48]} 16. Qf3 {[%clk 0:00:40]}  fxg5 {[%clk 0:01:24]} 17. dxe5 {[%clk 0:00:30]}  g4 {[%clk 0:01:10]} 18. Qe2 {[%clk 0:00:25]}  Nc5 {[%clk 0:01:10]} 19. O-O-O {[%clk 0:00:24]}  Bf5 {[%clk 0:01:09]} 20. e4 {[%clk 0:00:22]}  dxe4 {[%clk 0:00:52]} 21. Nxe4 {[%clk 0:00:21]}  Qb6 {[%clk 0:00:49]} 22. Bf2 {[%clk 0:00:17]}  Bxe4 {[%clk 0:00:40]} 23. Bxe4 {[%clk 0:00:17]}  Qa5 {[%clk 0:00:28]} 24. Bc2 {[%clk 0:00:16]}  Bh6 {[%clk 0:00:21]} 25. Be3 {[%clk 0:00:14]}  Ne6 {[%clk 0:00:20]} 26. Qxg4 {[%clk 0:00:09]}  Rf8 {[%clk 0:00:13]} 27. Qxe6+ {[%clk 0:00:05]}  Kh8 {[%clk 0:00:14]} 28. h5 {[%clk 0:00:04]}  Rae8 {[%clk 0:00:14]} 29. Qg4 {[%clk 0:00:04]}  g5 {[%clk 0:00:13]} 30. fxg5 {[%clk 0:00:03]}  Bg7 {[%clk 0:00:13]} 31. h6 {[%clk 0:00:03]}  Bxe5 {[%clk 0:00:13]} 32. g6 {[%clk 0:00:03]}  hxg6 {[%clk 0:00:09]} 33. Qxg6 {[%clk 0:00:04]}  Re7 {[%clk 0:00:10]} 34. Rdf1 {[%clk 0:00:03]}  Rg8 {[%clk 0:00:09]} 35. Qf5 {[%clk 0:00:02]}  Qc7 {[%clk 0:00:07]} 36. Kb1 {[%clk 0:00:03]}  Rge8 {[%clk 0:00:02]} 37. h7 {[%clk 0:00:03]}  Qd6 {[%clk 0:00:02]} 38. Bg5 {[%clk 0:00:02]}  Rg7 {[%clk 0:00:01]} 39. Bf6 {[%clk 0:00:02]}  Bxf6 {[%clk 0:00:02]} 40. Qxf6 {[%clk 0:00:03]}  Qxf6 {[%clk 0:00:03]} 41. Rxf6 {[%clk 0:00:03]}  a5 {[%clk 0:00:03]} 42. Rhf1 {[%clk 0:00:03]}  Rge7 {[%clk 0:00:02]} 43. Rf8+ {[%clk 0:00:03]} 1-0


[Site "https://www.chess.com"]

[Event "Titled Tuesday Blitz March 07 Early 2023"]
[White "Orlov, Georgi"]
[Black "Fawzy, Adham"]
[WhiteFideId "2011271"]
[BlackFideId "10613129"]
[WhiteElo "2643"]
[BlackElo "2539"]
[Result "1-0"]
[Round "03"]
[TimeControl "180+2"]
[Date "2023.03.07"]
[WhiteClock "0:02:10"]
[BlackClock "0:00:01"]

1. d4 {[%clk 0:02:54]}  Nf6 {[%clk 0:02:55]} 2. Nf3 {[%clk 0:02:54]}  g6 {[%clk 0:02:55]} 3. c4 {[%clk 0:02:54]}  Bg7 {[%clk 0:02:55]} 4. Nc3 {[%clk 0:02:54]}  O-O {[%clk 0:02:55]} 5. e4 {[%clk 0:02:54]}  d6 {[%clk 0:02:55]} 6. Be2 {[%clk 0:02:55]}  e5 {[%clk 0:02:56]} 7. dxe5 {[%clk 0:02:55]}  dxe5 {[%clk 0:02:56]} 8. Qxd8 {[%clk 0:02:56]}  Rxd8 {[%clk 0:02:57]} 9. Bg5 {[%clk 0:02:56]}  Re8 {[%clk 0:02:54]} 10. Nd5 {[%clk 0:02:56]}  Nxd5 {[%clk 0:02:53]} 11. cxd5 {[%clk 0:02:56]}  c6 {[%clk 0:02:27]} 12. Bc4 {[%clk 0:02:55]}  cxd5 {[%clk 0:02:26]} 13. Bxd5 {[%clk 0:02:55]}  Nd7 {[%clk 0:02:25]} 14. Ke2 {[%clk 0:02:54]}  h6 {[%clk 0:02:05]} 15. Bh4 {[%clk 0:02:52]}  g5 {[%clk 0:01:52]} 16. Bg3 {[%clk 0:02:51]}  Nf6 {[%clk 0:01:50]} 17. Rhd1 {[%clk 0:02:51]}  Nxd5 {[%clk 0:00:57]} 18. Rxd5 {[%clk 0:02:51]}  Be6 {[%clk 0:00:57]} 19. Rc5 {[%clk 0:02:50]}  f6 {[%clk 0:00:39]} 20. Nd2 {[%clk 0:02:48]}  Rac8 {[%clk 0:00:37]} 21. Rac1 {[%clk 0:02:47]}  Rxc5 {[%clk 0:00:31]} 22. Rxc5 {[%clk 0:02:47]}  Rc8 {[%clk 0:00:32]} 23. Rxc8+ {[%clk 0:02:44]}  Bxc8 {[%clk 0:00:33]} 24. f3 {[%clk 0:02:44]}  Bf8 {[%clk 0:00:29]} 25. Bf2 {[%clk 0:02:44]}  b6 {[%clk 0:00:27]} 26. Kd3 {[%clk 0:02:35]}  Kf7 {[%clk 0:00:25]} 27. Nc4 {[%clk 0:02:30]}  Ke6 {[%clk 0:00:23]} 28. a3 {[%clk 0:02:29]}  Bd6 {[%clk 0:00:20]} 29. Kc3 {[%clk 0:02:27]}  Bc7 {[%clk 0:00:20]} 30. b4 {[%clk 0:02:26]}  Ba6 {[%clk 0:00:18]} 31. a4 {[%clk 0:02:25]}  Bc8 {[%clk 0:00:17]} 32. b5 {[%clk 0:02:25]}  Bd6 {[%clk 0:00:17]} 33. a5 {[%clk 0:02:21]}  bxa5 {[%clk 0:00:17]} 34. Nxa5 {[%clk 0:02:21]}  f5 {[%clk 0:00:05]} 35. Bxa7 {[%clk 0:02:17]}  fxe4 {[%clk 0:00:04]} 36. fxe4 {[%clk 0:02:17]}  g4 {[%clk 0:00:03]} 37. Be3 {[%clk 0:02:12]}  Kd7 {[%clk 0:00:01]} 38. Bxh6 {[%clk 0:02:10]} 1-0


[Site "https://www.chess.com"]